fUSD/lending_fUSD_20260523
["ID","MTS","AMOUNT","RATE_DAILY","PERIOD"]
[422852638,1779523843000,-3635.0,0.0001208,2]
[422852634,1779523843000,-17634.16856504,0.00011855,2]
[422852636,1779523843000,-2500.0,0.00012,2]
[422852637,1779523843000,-1227.937,0.0001203,2]
[422852639,1779523843000,-931.0,0.0001208,2]
[422852632,1779523843000,-2434.0,0.00011787,5]
[422852640,1779523843000,-166.91,0.00012153,2]
[422852651,1779523843000,-150.0,0.00012674,2]
[422852643,1779523843000,-17634.16856504,0.00012464,2]
[422852644,1779523843000,-3292.0,0.00012488,2]
[422852646,1779523843000,-854.39,0.00012504,2]
[422852642,1779523843000,-13971.37772156,0.00012454,2]
[422852645,1779523843000,-823.0,0.00012489,2]
[422852647,1779523843000,-5885.56632166,0.00012537,2]
[422852648,1779523843000,-166.91,0.00012655,2]
[422852649,1779523843000,-150.372,0.00012674,2]
[422852652,1779523843000,-243.956,0.00012674,2]
[422852650,1779523843000,-150.0,0.00012674,2]
[422852628,1779523843000,-449.74,0.000115,2]
[422852641,1779523843000,-185.24,0.00012329,2]
[422852622,1779523843000,-4856.88,0.00011281,2]
[422852610,1779523843000,-305.53854586,0.00011098,2]
[422852621,1779523843000,-17634.16856504,0.00011246,2]
[422852604,1779523843000,-150.0,0.00010959,2]
[422852605,1779523843000,-5885.56632166,0.00010961,2]
[422852603,1779523843000,-5885.56632166,0.000109,2]
[422852601,1779523843000,-5400.37017043,0.00010811,2]
[422852602,1779523843000,-181.53039737,0.00010811,2]
[422852606,1779523843000,-2500.0,0.00011,2]
[422852608,1779523843000,-1823.7,0.0001103,2]
[422852607,1779523843000,-152.0,0.00011,5]
[422852609,1779523843000,-300.0,0.00011098,2]
[422852611,1779523843000,-300.0,0.00011098,2]
[422852612,1779523843000,-300.0,0.00011098,2]
[422852625,1779523843000,-2351.0,0.00011353,2]
[422852614,1779523843000,-17634.16856509,0.00011099,2]
[422852616,1779523843000,-17634.16856504,0.00011099,2]
[422852627,1779523843000,-200.0,0.00011425,2]
[422852626,1779523843000,-334.0,0.00011354,2]
[422852617,1779523843000,-13971.37772163,0.00011099,2]
[422852615,1779523843000,-17634.16856504,0.00011099,2]
[422852618,1779523843000,-13971.37772156,0.00011099,2]
[422852620,1779523843000,-13971.37772156,0.00011231,2]
[422852619,1779523843000,-13971.37772156,0.00011099,2]
[422852624,1779523843000,-587.0,0.00011353,2]
[422852654,1779523843000,-3550.305,0.00012674,2]
[422852623,1779523843000,-150.99,0.00011281,2]
[422852613,1779523843000,-666.0,0.00011098,2]
[422852653,1779523843000,-150.0,0.00012674,2]
[422852687,1779523843000,-13971.37772156,0.00013677,2]
[422852661,1779523843000,-2500.0,0.00013,2]
[422852689,1779523843000,-17634.16856504,0.00013682,2]
[422852693,1779523843000,-500.0,0.00013698,2]
[422852698,1779523843000,-500.0,0.00013698,2]
[422852695,1779523843000,-500.0,0.00013698,2]
[422852697,1779523843000,-500.0,0.00013698,2]
[422852699,1779523843000,-500.0,0.00013698,2]
[422852700,1779523843000,-500.0,0.00013698,2]
[422852712,1779523843000,-500.0,0.00013698,2]
[422852702,1779523843000,-500.0,0.00013698,2]
[422852704,1779523843000,-500.0,0.00013698,2]
[422852711,1779523843000,-500.0,0.00013698,2]
[422852691,1779523843000,-473.54963748,0.00013698,2]
[422852701,1779523843000,-500.0,0.00013698,2]
[422852703,1779523843000,-500.0,0.00013698,2]
[422852708,1779523843000,-500.0,0.00013698,2]
[422852706,1779523843000,-500.0,0.00013698,2]
[422852705,1779523843000,-500.0,0.00013698,2]
[422852710,1779523843000,-500.0,0.00013698,2]
[422852709,1779523843000,-500.0,0.00013698,2]
[422852714,1779523843000,-500.0,0.00013698,2]
[422852717,1779523843000,-500.0,0.00013698,2]
[422852716,1779523843000,-534.25855286,0.00013698,2]
[422852715,1779523843000,-297.55522492,0.00013698,2]
[422852656,1779523843000,-625.0,0.00012674,2]
[422852707,1779523843000,-500.0,0.00013698,2]
[422852680,1779523843000,-150.0,0.00013488,2]
[422852713,1779523843000,-500.0,0.00013698,2]
[422852682,1779523843000,-150.0,0.00013488,2]
[422852662,1779523843000,-152.0,0.00013005,7]
[422852664,1779523843000,-13971.37772156,0.00013065,2]
[422852666,1779523843000,-1100.0,0.00013082,2]
[422852685,1779523843000,-166.91,0.00013658,2]
[422852665,1779523843000,-17634.16856504,0.00013073,2]
[422852658,1779523843000,-150.0,0.00012674,2]
[422852663,1779523843000,-185.92700029,0.00013052,21]
[422852657,1779523843000,-927.0,0.00012674,2]
[422852660,1779523843000,-173.47,0.00012849,2]
[422852659,1779523843000,-1271.0,0.00012674,2]
[422852668,1779523843000,-2000.0,0.00013126,2]
[422852676,1779523843000,-150.0,0.00013488,2]
[422852655,1779523843000,-1355.0,0.00012674,2]
[422852670,1779523843000,-500.0,0.00013205,2]
[422852677,1779523843000,-150.00000001,0.00013488,2]
[422852683,1779523843000,-150.0,0.00013595,2]
[422852674,1779523843000,-193.937064,0.00013408,2]
[422852675,1779523843000,-341.523272,0.00013424,2]
[422852667,1779523843000,-2400.0,0.00013082,2]
[422852673,1779523843000,-282.811387,0.00013408,2]
[422852671,1779523843000,-5885.56632166,0.00013325,2]
[422852679,1779523843000,-150.0,0.00013488,2]
[422852669,1779523843000,-166.91,0.00013156,2]
[422852672,1779523843000,-264.939266,0.00013408,2]
[422852678,1779523843000,-150.0,0.00013488,2]
[422852730,1779523844000,-189.69740348,0.00013799,21]
[422852736,1779523844000,-2500.0,0.00014,2]
[422852742,1779523844000,-250.0,0.00014,2]
[422852741,1779523844000,-6556.74,0.00014,2]
[422852732,1779523844000,-166.66,0.00013836,2]
[422852735,1779523844000,-166.66,0.00013973,2]
[422852733,1779523844000,-150.0,0.00013916,2]
[422852743,1779523844000,-308.0,0.00014,2]
[422852729,1779523844000,-1152.0,0.00013738,2]
[422852722,1779523844000,-2000.0,0.00013699,7]
[422852718,1779523844000,-166.66,0.00013699,2]
[422852720,1779523844000,-2500.0,0.00013699,2]
[422852721,1779523844000,-200.0,0.00013699,2]
[422852727,1779523844000,-4609.0,0.00013737,2]
[422852725,1779523844000,-232.24588424,0.00013725,2]
[422852723,1779523844000,-150.0,0.00013702,2]
[422852734,1779523844000,-150.0,0.00013916,2]
[422852731,1779523844000,-150.0,0.00013809,2]
[422852737,1779523844000,-6556.74,0.00014,2]
[422852724,1779523844000,-150.0,0.00013702,2]
[422852739,1779523844000,-6556.74,0.00014,2]
[422852738,1779523844000,-6556.74,0.00014,2]
[422852761,1779523844000,-722.8955016,0.00014058,2]
[422852760,1779523844000,-913.20110699,0.00014058,2]
[422852759,1779523844000,-1245.61888089,0.00014058,2]
[422852755,1779523844000,-349.16551603,0.00014055,5]
[422852757,1779523844000,-1260.82723805,0.00014055,5]
[422852756,1779523844000,-668.40708869,0.00014055,5]
[422852751,1779523844000,-13186.65,0.00014,2]
[422852752,1779523844000,-150.0,0.00014023,2]
[422852758,1779523844000,-6181.41125738,0.00014058,2]
[422852750,1779523844000,-13186.65,0.00014,2]
[422852745,1779523844000,-315.0,0.00014,2]
[422852740,1779523844000,-6556.74,0.00014,2]
[422852747,1779523844000,-2030.82194961,0.00014,2]
[422852748,1779523844000,-13186.65,0.00014,2]
[422852744,1779523844000,-1000.0,0.00014,2]
[422852749,1779523844000,-13186.65,0.00014,2]
[422852753,1779523844000,-164.0,0.0001404,2]
[422852746,1779523844000,-11155.82805039,0.00014,2]
[422852754,1779523844000,-545.60015723,0.00014055,5]
[422852801,1779523846000,-166.66,0.00014247,2]
[422852796,1779523846000,-150.0,0.0001413,2]
[422852798,1779523846000,-166.91,0.00014159,2]
[422852797,1779523846000,-173.47,0.00014133,2]
[422852793,1779523846000,-166.66,0.0001411,2]
[422852792,1779523846000,-500.0,0.00014104,2]
[422852795,1779523846000,-150.0,0.0001413,2]
[422852789,1779523846000,-1750.0174385,0.00014058,2]
[422852790,1779523846000,-504.0,0.00014058,2]
[422852791,1779523846000,-793.19741477,0.00014058,2]
[422852788,1779523846000,-4764.85685877,0.00014058,2]
[422852787,1779523846000,-209.60104111,0.00013698,2]
[422852786,1779523846000,-2469.03871906,0.00012292,2]
[422852784,1779523846000,-653.74439782,0.00012292,2]
[422852799,1779523846000,-150.0,0.00014237,2]
[422852794,1779523846000,-5885.56632166,0.00014112,2]
[422852800,1779523846000,-150.0,0.00014237,2]
[422852785,1779523846000,-2937.21688312,0.00012292,2]
[422852803,1779523846000,-3353.82135804,0.0001425,2]
[422852821,1779523846000,-5272.23377436,0.000146,5]
[422852820,1779523846000,-28.81638209,0.000146,5]
[422852818,1779523846000,-150.0,0.00014558,2]
[422852819,1779523846000,-150.0,0.00014558,2]
[422852808,1779523846000,-2000.0,0.00014319,2]
[422852807,1779523846000,-17634.16856504,0.00014291,2]
[422852817,1779523846000,-2400.0,0.00014452,2]
[422852806,1779523846000,-13971.37772156,0.00014288,2]
[422852802,1779523846000,-311.18889745,0.00014249,2]
[422852809,1779523846000,-700.0,0.00014326,2]
[422852812,1779523846000,-150.0,0.00014344,2]
[422852816,1779523846000,-1100.0,0.00014452,2]
[422852810,1779523846000,-2000.0,0.00014329,7]
[422852814,1779523846000,-166.66,0.00014384,2]
[422852811,1779523846000,-150.0,0.00014344,2]
[422852804,1779523846000,-350.0,0.00014252,2]
[422852815,1779523846000,-150.0,0.00014451,2]
[422852835,1779523862000,104.98470148,9.378e-05,7]
[422852834,1779523862000,152.85726001,9.378e-05,7]
[422852836,1779523864000,200.0,9e-05,3]
[422852837,1779523893000,300.0,9e-05,3]
[422852838,1779523985000,3860.0,0.00028082,120]
[422852839,1779524068000,-153.99050942,9.099e-05,2]
[422852840,1779524122000,-1562.013,9.099e-05,2]
[422852842,1779524176000,-151.0,9.282e-05,2]
[422852843,1779524213000,150.05,6.133e-05,2]
[422852845,1779524229000,-250.0,9.282e-05,2]
[422852846,1779524282000,-1200.0,9.283e-05,2]
[422852848,1779524335000,-300.0,9.283e-05,2]
[422852849,1779524389000,-177.77916903,9.284e-05,2]
[422852850,1779524442000,-781.0892336,9.284e-05,2]
[422852853,1779524764000,1098.07046974,9.284e-05,3]
[422852855,1779524834000,1200.0,9e-05,3]
[422852856,1779524906000,300.0,9e-05,3]
[422852857,1779524940000,1000.0,0.00028081,120]
[422852859,1779524981000,150.03,5.355e-05,2]
[422852882,1779525032000,-171.13,8.895e-05,2]
[422852916,1779525032000,-500.0,0.00011174,2]
[422852910,1779525032000,-3825.00603554,0.00011099,2]
[422852911,1779525032000,-3825.00603554,0.00011099,2]
[422852921,1779525032000,-2096.35636184,0.00011665,2]
[422852909,1779525032000,-3825.00603557,0.00011099,2]
[422852907,1779525032000,-500.0,0.000109,2]
[422852905,1779525032000,-3975.36888695,0.00010863,2]
[422852902,1779525032000,-1069.26460904,0.00010738,2]
[422852903,1779525032000,-241.0,0.00010801,2]
[422852906,1779525032000,-500.0,0.00010877,2]
[422852904,1779525032000,-2648.76,0.00010841,2]
[422852908,1779525032000,-178.95200143,0.0001098,2]
[422852901,1779525032000,-150.03,0.00010709,2]
[422852900,1779525032000,-46121.99950305,0.000107,2]
[422852899,1779525032000,-8402.07309247,0.00010304,2]
[422852894,1779525032000,-193.0,0.00010211,2]
[422852913,1779525032000,-2351.0,0.00011112,2]
[422852885,1779525032000,-19663.8187,9.185e-05,2]
[422852886,1779525032000,-150.0,9.283e-05,2]
[422852887,1779525032000,-250.0,9.283e-05,2]
[422852884,1779525032000,-1200.0,9.184e-05,2]
[422852889,1779525032000,-215.31523495,9.463e-05,2]
[422852888,1779525032000,-208.78535381,9.373e-05,2]
[422852883,1779525032000,-300.0,9.184e-05,2]
[422852890,1779525032000,-163.47,0.0001,2]
[422852892,1779525032000,-1680.0,0.00010102,2]
[422852897,1779525032000,-301.31267001,0.00010211,2]
[422852896,1779525032000,-250.0,0.00010211,2]
[422852895,1779525032000,-332.48804878,0.00010211,2]
[422852893,1779525032000,-250.0,0.00010211,2]
[422852898,1779525032000,-3642.84594244,0.000103,2]
[422852891,1779525032000,-420.0,0.00010102,2]
[422852915,1779525032000,-2000.0,0.00011154,2]
[422852936,1779525032000,-3292.0,0.00012223,2]
[422852914,1779525032000,-3825.00603554,0.00011126,2]
[422852942,1779525032000,-311.37104562,0.000125,2]
[422852938,1779525032000,-466.99,0.00012329,2]
[422852935,1779525032000,-823.0,0.00012223,2]
[422852939,1779525032000,-3825.00603554,0.00012384,2]
[422852943,1779525032000,-152.0,0.00012529,7]
[422852940,1779525032000,-1458.96,0.00012396,2]
[422852937,1779525032000,-1261.82,0.00012325,2]
[422852945,1779525032000,-150.0,0.00012666,2]
[422852944,1779525032000,-2000.0,0.00012549,2]
[422852947,1779525032000,-1224.0,0.00012666,2]
[422852948,1779525032000,-945.348,0.00012666,2]
[422852951,1779525032000,-186.47,0.00012797,2]
[422852950,1779525032000,-1458.96,0.00012698,2]
[422852919,1779525032000,-173.48,0.00011288,2]
[422852941,1779525032000,-2096.35636184,0.00012474,2]
[422852946,1779525032000,-1271.0,0.00012666,2]
[422852949,1779525032000,-6060.0,0.00012666,2]
[422852931,1779525032000,-500.0,0.00012055,2]
[422852927,1779525032000,-500.0,0.00012055,2]
[422852917,1779525032000,-163.25,0.00011236,2]
[422852918,1779525032000,-4149.76,0.00011265,2]
[422852922,1779525032000,-3825.00603554,0.00011755,2]
[422852924,1779525032000,-500.0,0.00012055,2]
[422852923,1779525032000,-500.0,0.00011836,2]
[422852934,1779525032000,-1458.96,0.00012093,2]
[422852920,1779525032000,-150.0,0.00011288,2]
[422852926,1779525032000,-500.0,0.00012055,2]
[422852932,1779525032000,-500.0,0.00012055,2]
[422852925,1779525032000,-500.0,0.00012055,2]
[422852930,1779525032000,-500.0,0.00012055,2]
[422852933,1779525032000,-628.0,0.00012055,2]
[422852912,1779525032000,-587.0,0.00011112,2]
[422852928,1779525032000,-500.0,0.00012055,2]
[422852929,1779525032000,-500.0,0.00012055,2]
[422852976,1779525033000,-150.0,0.00013488,2]
[422852973,1779525033000,-151.08749519,0.00013488,2]
[422852974,1779525033000,-150.0,0.00013488,2]
[422852967,1779525033000,-1152.0,0.00013446,2]
[422852963,1779525033000,-1458.96,0.00013303,2]
[422852965,1779525033000,-738.84,0.00013402,2]
[422852962,1779525033000,-2096.35636184,0.00013283,2]
[422852958,1779525033000,-1148.32135889,0.00013082,2]
[422852964,1779525033000,-2314.0,0.000134,2]
[422852968,1779525033000,-4609.0,0.00013446,2]
[422852971,1779525033000,-150.0,0.00013488,2]
[422852953,1779525033000,-204.155298,0.00012893,2]
[422852969,1779525033000,-150.0,0.00013488,2]
[422852970,1779525033000,-150.0,0.00013488,2]
[422852960,1779525033000,-500.0,0.00013082,2]
[422852959,1779525033000,-1100.0,0.00013082,2]
[422852957,1779525033000,-1251.67864111,0.00013082,2]
[422852956,1779525033000,-3825.00603554,0.00013013,2]
[422852955,1779525033000,-1458.96,0.00013,2]
[422852952,1779525033000,-1182.49,0.00012809,2]
[422852954,1779525033000,-16053.584702,0.00012893,2]
[422852979,1779525033000,-500.0,0.00013698,2]
[422852961,1779525033000,-311.0,0.00013233,2]
[422852972,1779525033000,-150.0,0.00013488,2]
[422852966,1779525033000,-290.55978742,0.00013428,21]
[422852978,1779525033000,-3825.00603554,0.00013642,2]
[422852975,1779525033000,-150.0,0.00013488,2]
[422852999,1779525033000,-200.0,0.00013699,2]
[422853002,1779525033000,-959.58057949,0.00013809,2]
[422853001,1779525033000,-5777.06656239,0.00013809,2]
[422853000,1779525033000,-166.66,0.00013699,2]
[422852996,1779525033000,-500.0,0.00013698,2]
[422852998,1779525033000,-500.0,0.00013698,2]
[422852995,1779525033000,-119.24250716,0.00013698,2]
[422852987,1779525033000,-555.06801264,0.00013698,2]
[422852984,1779525033000,-500.0,0.00013698,2]
[422852988,1779525033000,-592.0817962,0.00013698,2]
[422852986,1779525033000,-299.3113989,0.00013698,2]
[422852997,1779525033000,-500.0,0.00013698,2]
[422852985,1779525033000,-500.0,0.00013698,2]
[422852989,1779525033000,-500.0,0.00013698,2]
[422852981,1779525033000,-500.0,0.00013698,2]
[422852977,1779525033000,-150.0,0.00013488,2]
[422852982,1779525033000,-500.0,0.00013698,2]
[422852990,1779525033000,-500.0,0.00013698,2]
[422852980,1779525033000,-500.0,0.00013698,2]
[422852991,1779525033000,-500.0,0.00013698,2]
[422852993,1779525033000,-500.0,0.00013698,2]
[422852983,1779525033000,-500.0,0.00013698,2]
[422852994,1779525033000,-380.75749284,0.00013698,2]
[422852992,1779525033000,-500.0,0.00013698,2]
[422853084,1779525038000,-401.62546948,0.00012808,2]
[422853075,1779525038000,-500.0,0.00012808,2]
[422853079,1779525038000,-500.0,0.00012808,2]
[422853080,1779525038000,-500.0,0.00012808,2]
[422853077,1779525038000,-500.0,0.00012808,2]
[422853081,1779525038000,-500.0,0.00012808,2]
[422853078,1779525038000,-500.0,0.00012808,2]
[422853074,1779525038000,-500.0,0.00012808,2]
[422853082,1779525038000,-500.0,0.00012808,2]
[422853072,1779525038000,-500.0,0.00012808,2]
[422853094,1779525038000,-34092.60673542,0.00013809,2]
[422853073,1779525038000,-500.0,0.00012808,2]
[422853095,1779525038000,-1646.4985775,0.00013809,2]
[422853076,1779525038000,-500.0,0.00012808,2]
[422853083,1779525038000,-500.0,0.00012808,2]
[422853088,1779525038000,-500.0,0.00012808,2]
[422853099,1779525038000,-166.66,0.00013836,2]
[422853100,1779525038000,-491.62268518,0.00013836,2]
[422853097,1779525038000,-996.3960505,0.00013809,2]
[422853096,1779525038000,-10168.02743262,0.00013809,2]
[422853090,1779525038000,-500.0,0.00012808,2]
[422853098,1779525038000,-3783.2938317,0.00013809,2]
[422853085,1779525038000,-500.0,0.00012808,2]
[422853091,1779525038000,-500.0,0.00012808,2]
[422853087,1779525038000,-500.0,0.00012808,2]
[422853093,1779525038000,-619.54787558,0.00013809,2]
[422853086,1779525038000,-500.0,0.00012808,2]
[422853092,1779525038000,-686.45118795,0.00013718,2]
[422853089,1779525038000,-500.0,0.00012808,2]
[422853129,1779525040000,-166.66,0.00014247,2]
[422853126,1779525040000,-166.66,0.0001411,2]
[422853124,1779525040000,-2096.35636184,0.00014091,2]
[422853127,1779525040000,-2200.0,0.000142,5]
[422853128,1779525040000,-150.0,0.00014237,2]
[422853131,1779525040000,-3825.00603554,0.00014271,2]
[422853136,1779525040000,-2128.82192824,0.000144,5]
[422853137,1779525040000,-268.37582017,0.000144,5]
[422853130,1779525040000,-11338.223452,0.0001425,2]
[422853133,1779525040000,-4400.0,0.000143,5]
[422853132,1779525040000,-500.0,0.00014274,2]
[422853135,1779525040000,-2000.0,0.000144,2]
[422853125,1779525040000,-2000.0,0.000141,2]
[422853134,1779525040000,-166.66,0.00014384,2]
[422853123,1779525040000,-27482.7396983,0.00014054,2]
[422853117,1779525040000,-166.66,0.00013973,2]
[422853119,1779525040000,-150.0,0.00013987,2]
[422853121,1779525040000,-163.25,0.00014045,2]
[422853122,1779525040000,-172.4957055,0.00014054,2]
[422853116,1779525040000,-150.0,0.00013949,2]
[422853115,1779525040000,-2000.0,0.00013943,2]
[422853118,1779525040000,-150.0,0.00013987,2]
[422853112,1779525040000,-2400.0,0.000139,5]
[422853113,1779525040000,-700.0,0.000139,5]
[422853111,1779525040000,-1108.04908193,0.00013874,2]
[422853114,1779525040000,-1560.0,0.00013908,5]
[422853110,1779525040000,-3586.7899769,0.00013848,2]
[422853109,1779525040000,-162.104,0.00013836,2]
[422853108,1779525040000,-1426.61731482,0.00013836,2]
[422853107,1779525040000,-224.09042132,0.00013718,2]
[422853120,1779525040000,-2008.0,0.00014,2]
[422853139,1779525040000,-1000.0,0.000144,5]
[422853146,1779525040000,-308.0,0.000145,2]
[422853138,1779525040000,-1202.80225159,0.000144,5]
[422853141,1779525040000,-2400.0,0.00014452,2]
[422853169,1779525040000,-349.04935,0.0001485,2]
[422853166,1779525040000,-1200.0,0.000148,5]
[422853172,1779525040000,-500.0,0.00014856,2]
[422853167,1779525040000,-300.0,0.000148,5]
[422853164,1779525040000,-1613.0,0.0001479,2]
[422853171,1779525040000,-349.04935,0.0001485,2]
[422853170,1779525040000,-349.04935,0.0001485,2]
[422853163,1779525040000,-169.26483156,0.0001478,7]
[422853162,1779525040000,-251.78123832,0.00014768,2]
[422853165,1779525040000,-1061.0,0.0001479,2]
[422853157,1779525040000,-300.0,0.000147,5]
[422853159,1779525040000,-183.0,0.00014702,2]
[422853156,1779525040000,-1200.0,0.000147,5]
[422853161,1779525040000,-1943.0,0.00014768,5]
[422853168,1779525040000,-1008.8175,0.00014849,5]
[422853155,1779525040000,-1512.63363969,0.000147,2]
[422853140,1779525040000,-6600.0,0.000144,5]
[422853142,1779525040000,-1100.0,0.00014452,2]
[422853143,1779525040000,-31487.28040728,0.0001446,2]
[422853144,1779525040000,-150.0,0.00014487,2]
[422853152,1779525040000,-330.0,0.00014548,3]
[422853145,1779525040000,-150.0,0.00014487,2]
[422853148,1779525040000,-315.0,0.000145,2]
[422853147,1779525040000,-1000.0,0.000145,2]
[422853151,1779525040000,-390.0,0.0001452,2]
[422853153,1779525040000,-6100.0,0.000146,5]
[422853154,1779525040000,-1700.0,0.000146,5]
[422853150,1779525040000,-1400.0,0.000145,5]
[422853160,1779525040000,-200.0,0.00014734,2]
[422853158,1779525040000,-2000.0,0.000147,2]
[422853149,1779525040000,-4900.0,0.000145,5]
[422853202,1779525041000,-377.7448,0.00014994,2]
[422853194,1779525041000,-150.0,0.00014986,2]
[422853201,1779525041000,-1749.9639993,0.00014994,2]
[422853199,1779525041000,-195.96869829,0.0001499,2]
[422853198,1779525041000,-195.96869829,0.0001499,2]
[422853200,1779525041000,-151.0,0.00014992,2]
[422853197,1779525041000,-195.96869829,0.0001499,2]
[422853190,1779525041000,-751.03152963,0.000149,2]
[422853196,1779525041000,-150.0,0.00014986,2]
[422853193,1779525041000,-150.0,0.00014986,2]
[422853195,1779525041000,-150.0,0.00014986,2]
[422853191,1779525041000,-291.23615049,0.000149,2]
[422853192,1779525041000,-150.0,0.00014924,2]
[422853183,1779525041000,-1200.0,0.000149,5]
[422853186,1779525041000,-3825.00603554,0.000149,2]
[422853179,1779525041000,-13986.62242141,0.000149,3]
[422853180,1779525041000,-25000.0,0.000149,3]
[422853178,1779525041000,-285.46825191,0.00014897,2]
[422853187,1779525041000,-2718.35726973,0.000149,2]
[422853176,1779525041000,-500.0,0.00014896,2]
[422853189,1779525041000,-3215.04206956,0.000149,2]
[422853182,1779525041000,-20000.0,0.000149,2]
[422853181,1779525041000,-454.02994952,0.000149,2]
[422853177,1779525041000,-500.0,0.00014896,2]
[422853185,1779525041000,-2096.35636184,0.000149,2]
[422853175,1779525041000,-500.0,0.00014896,2]
[422853174,1779525041000,-200.0,0.00014879,2]
[422853173,1779525041000,-171.0,0.0001487,2]
[422853206,1779525041000,-700.0,0.00014994,2]
[422853184,1779525041000,-300.0,0.000149,5]
[422853203,1779525041000,-500.0,0.00014994,2]
[422853217,1779525041000,-500.0,0.00014999,2]
[422853204,1779525041000,-500.0,0.00014994,2]
[422853236,1779525041000,-326563.77534407,0.00015,2]
[422853234,1779525041000,-172510.72112664,0.00015,2]
[422853235,1779525041000,-8087.26435728,0.00015,2]
[422853233,1779525041000,-300.0,0.00014999,2]
[422853231,1779525041000,-500.0,0.00014999,2]
[422853232,1779525041000,-510.38705025,0.00014999,2]
[422853228,1779525041000,-500.0,0.00014999,2]
[422853230,1779525041000,-500.0,0.00014999,2]
[422853229,1779525041000,-500.0,0.00014999,2]
[422853225,1779525041000,-500.0,0.00014999,2]
[422853226,1779525041000,-500.0,0.00014999,2]
[422853205,1779525041000,-500.0,0.00014994,2]
[422853224,1779525041000,-500.0,0.00014999,2]
[422853223,1779525041000,-500.0,0.00014999,2]
[422853221,1779525041000,-500.0,0.00014999,2]
[422853222,1779525041000,-500.0,0.00014999,2]
[422853218,1779525041000,-269.76420568,0.00014999,2]
[422853207,1779525041000,-198789.62409505,0.00014995,2]
[422853208,1779525041000,-151.0,0.00014997,2]
[422853214,1779525041000,-500.0,0.00014999,2]
[422853220,1779525041000,-500.0,0.00014999,2]
[422853210,1779525041000,-25000.0,0.00014999,3]
[422853215,1779525041000,-500.0,0.00014999,2]
[422853209,1779525041000,-1008.81748156,0.00014999,5]
[422853213,1779525041000,-500.0,0.00014999,2]
[422853212,1779525041000,-500.0,0.00014999,2]
[422853227,1779525041000,-500.0,0.00014999,2]
[422853216,1779525041000,-500.0,0.00014999,2]
[422853219,1779525041000,-500.0,0.00014999,2]
[422853211,1779525041000,-5800.0,0.00014999,2]
[422853250,1779525043000,-1162.91367806,0.000145,5]
[422853248,1779525043000,-1688.10474663,0.000145,5]
[422853249,1779525043000,-3962.227,0.000145,5]
[422853247,1779525043000,-613.12553835,0.000145,5]
[422853246,1779525043000,-930.74,0.000145,5]
[422853257,1779525046000,-1355.0,0.0001255,2]
[422853258,1779525046000,-442.88903696,0.000145,5]
[422853259,1779525046000,-683.8697895,0.000146,5]
[422853263,1779525046000,-311.06851916,0.000146,5]
[422853261,1779525046000,-6143.96502429,0.000146,5]
[422853260,1779525046000,-1593.38674049,0.000146,5]
[422853262,1779525046000,-612.46745466,0.000146,5]
[422853283,1779525062000,150.0,9.283e-05,7]
[422853284,1779525067000,169.415725,7.945e-05,2]
[422853286,1779525144000,1008.81748156,9.183e-05,3]
[422853288,1779525145000,139.85053473,8.9e-05,3]
[422853287,1779525145000,1160.14946527,8.9e-05,3]
[422853289,1779525147000,2700.0,9e-05,3]
[422853290,1779525243000,1098.07046974,9.183e-05,3]
[422853293,1779525348000,1100.38972464,9.183e-05,3]
[422853292,1779525348000,1100.38972464,9.183e-05,3]